[Event "Valenciana Championship 2022"]
[Site "Alcossebre"]
[Date "2022.06.13"]
[Round "2.3"]
[White "Macias Pino, Diego"]
[Black "Valmana Canto, Jaime"]
[Result "1/2-1/2"]
[ECO "B30"]
[WhiteElo "2365"]
[BlackElo "2392"]
[Annotator "TA"]
[PlyCount "109"]
[EventDate "2022.06.13"]
[EventType "tourn"]
[EventCountry "ESP"]
[SourceTitle "playchess.com"]
[Source "ChessBase"]
[SourceQuality "1"]
[TimeControl "5400+30"]

{[%evp 9,109,27,25,24,101,112,106,54,60,43,46,47,42,48,41,48,49,25,34,18,17,31,20,0,0,0,0,0,0,0,0,0,0,-42,-42,-32,-25,-33,-31,-54,-31,-73,-75,-193,-121,-113,-94,-203,-116,-373,-372,-444,-248,-702,-738,-729,-727,-706,-653,-767,-765,-664,-709,-661,-475,-876,-449,-12707,-12531,-12712,-12239,-9563,-22,-22,0,-1577,-1429,-1521,0,0,0,-1729,-2802,-1995,-1502,-1461,-1392,-1352,-173,-892,0,-339,-10,-10,-10,-10,-10,-10,0,0,0,0]} 1. e4 {[%emt 0:00:04]} c5 {[%emt 0:00:52]} 2. Nf3 {[%emt 0:00:05]} Nc6 {[%emt 0:01:17]} 3. Bb5 {[%emt 0:00:10]} Nf6 {[%emt 0:00:07]} 4. Nc3 {[%emt 0:00:07]} Qc7 {[%emt 0:00:51]} 5. O-O {[%emt 0:00:33]} Nd4 {[%emt 0:01:02]} 6. Re1 {[%emt 0:00:08] B30: Sicilian: 2...Nc6 3 Bb5, lines without ...g6.} Nxb5 {[%emt 0:25:37]} (6... a6 $11 {remains equal.} 7. Bd3 Ng4) 7. Nxb5 $16 {[%emt 0:00:18]} Qb6 {[%emt 0:00:02]} 8. Nc3 {[%emt 0:03:00] White is more active.} (8. c4 $16) 8... d6 $14 {[%emt 0:00:15] [#]} 9. d4 $146 {[%emt 0:07:38]} ({Predecessor:} 9. e5 dxe5 10. Nxe5 g6 11. d3 Bg7 12. h3 O-O 13. Rb1 Be6 14. Bf4 Rfd8 15. Qe2 {1-0 (28) Kalogeris,I (2307)-Pavlidis,A (2536) Chess.com INT 2021}) 9... cxd4 {[%emt 0:15:18]} 10. Nxd4 {[%emt 0:00:12]} e5 {[%emt 0:06:02]} 11. Nf5 {[%emt 0:06:42]} Bxf5 {[%emt 0:00:08]} 12. exf5 {[%emt 0:00:01]} h6 {[%emt 0:00:11] Against Bg5} 13. Be3 {[%emt 0:05:01]} Qc6 {[%emt 0:00:07]} 14. f4 {[%emt 0:00:23]} Be7 $1 {[%emt 0:12:37]} 15. Bf2 {[%emt 0:05:05]} O-O {[%emt 0:00:07]} 16. fxe5 {[%emt 0:04:08]} dxe5 {[%emt 0:00:07]} 17. Rxe5 {[%emt 0:00:03]} Bd6 {[%emt 0:07:06]} 18. Re1 {[%emt 0:07:09]} Bb4 {[%emt 0:00:03]} 19. Qd4 {[%emt 0:09:46]} a5 {[%emt 0:13:25]} 20. Rad1 {[%emt 0:08:24]} Rac8 {[%emt 0:00:33][%cal Rb4c3]} 21. Qb6 {[%emt 0:08:10]} Bxc3 {[%emt 0:02:07]} 22. bxc3 {[%emt 0:00:19]} Qxc3 {[%emt 0:05:22]} 23. Qxb7 {[%emt 0:07:49]} Qxc2 {[%emt 0:00:38]} 24. Qb5 {[%emt 0:04:02]} a4 {[%emt 0:00:55]} 25. Bd4 {[%emt 0:05:35]} Rfd8 {[%emt 0:00:07]} 26. Qe5 {[%emt 0:01:36]} (26. a3 $17) 26... Rd5 {[%emt 0:03:28]} ({Black should try} 26... Qxa2 $19 {Threatens to win with ...Qc4.} 27. Qg3 Nh5) 27. Qg3 $17 {[%emt 0:00:02][%cal Od4f6]} Rxf5 {[%emt 0:01:18]} 28. Rf1 {[%emt 0:00:29] [#]} (28. a3 $17 {is a better defense.}) 28... Rc6 {[%emt 0:03:53]} (28... Nh5 $1 $19 29. Qg4 Rg5) 29. h4 $2 {[%emt 0:02:29][%mdl 8192]} (29. a3 $17 {was worth a try.}) 29... Nh5 $19 {[%emt 0:00:34]} 30. Qb8+ {[%emt 0:04:15]} Kh7 {[%emt 0:00:01]} (30... Rc8 $142 31. Qb1 Rxf1+ 32. Rxf1 Ng3 33. Qxc2 Rxc2) 31. Qb1 {[%emt 0:00:14]} ({Wrong is} 31. Rxf5 $2 {[#]} Rg6 $1 32. Bf2 Qxd1+ 33. Kh2 Qg4 $19) (31. Qb2 Ng3 32. Qxc2 Rxc2 33. Rxf5 Nxf5 34. a3) 31... Rxf1+ {[%emt 0:01:02]} 32. Rxf1 {[%emt 0:00:01]} Ng3 {[%emt 0:00:07]} 33. Qxc2+ {[%emt 0:01:04]} Rxc2 {[%emt 0:00:01][%mdl 4096] Endgame KRB-KRN} 34. Rd1 {[%emt 0:00:07]} Ne2+ {[%emt 0:00:54]} 35. Kh2 {[%emt 0:00:02]} Nxd4 {[%emt 0:00:40]} 36. Rxd4 {[%emt 0:00:01]} Rxa2 {[%emt 0:00:07] KR-KR} 37. h5 {[%emt 0:00:08]} (37. Rd6 $142) 37... a3 {[%emt 0:00:49][%cal Ba4a3,Ba3a2][%mdl 32]} 38. Rd7 {[%emt 0:00:08]} (38. Rf4 $142 Kg8 39. Ra4) 38... Rf2 {[%emt 0:01:02]} 39. Ra7 {[%emt 0:00:07]} a2 {[%emt 0:00:23]} 40. Kg3 {[%emt 0:00:08]} Rf5 $2 {[%emt 0:00:36]} (40... Rc2 $19 41. Kf3 g6 42. Rxf7+ Kg8) 41. Kh4 $1 $11 {[%emt 0:00:08]} Rf2 $2 {[%emt 0:00:35][%mdl 8192]} (41... Rc5 $11 42. Rxa2 Rc8) 42. Kg3 $1 $19 {[%emt 0:00:01]} Rb2 {[%emt 0:00:07]} 43. Kf3 {[%emt 0:00:07]} Kg8 {[%emt 0:00:55]} 44. Ra8+ $1 {[%emt 0:00:01]} Kh7 {[%emt 0:00:06]} 45. Ra7 $1 {[%emt 0:00:02]} f5 {[%emt 0:00:37]} 46. g3 {[%emt 0:00:27]} Kg8 {[%emt 0:00:30]} 47. Kf4 {[%emt 0:00:22]} Rf2+ {[%emt 0:00:02]} 48. Ke5 {[%emt 0:00:05]} Rg2 $2 {[%emt 0:01:14]} (48... Kh7 49. Ra8 Rh2) 49. Kf4 $2 {[%emt 0:00:36]} (49. Ra8+ Kf7 50. Ra7+ Ke8 51. Kxf5) 49... Rf2+ $2 {[%emt 0:00:01]} (49... Rh2 {White must now prevent ...Rg2.} 50. Ke5 Rxh5 51. Rxa2 Rg5) 50. Ke5 {[%emt 0:00:01]} Rf3 $2 {[%emt 0:00:01]} (50... Kh7 $19 51. Ra8 Rh2) 51. Rxa2 $11 {[%emt 0:01:04] The position is equal.} Rxg3 {[%emt 0:00:07] And now ...Rh3 would win.} 52. Rf2 {[%emt 0:00:07]} Rg5 {[%emt 0:01:51]} 53. Rxf5 {[%emt 0:00:02]} Rxf5+ {[%emt 0:00:29]} 54. Kxf5 {[%emt 0:00:02]} Kf7 {[%emt 0:00:06]} 55. Ke5 {[%emt 0:00:10] Weighted Error Value: White=0.73/Black=0.34} 1/2-1/2

[Event "Valenciana Championship 2022"]
[Site "Alcossebre"]
[Date "2022.06.13"]
[Round "2.4"]
[White "Granero Roca, Antonio"]
[Black "Jordan Martinez, David"]
[Result "1-0"]
[ECO "D38"]
[WhiteElo "2340"]
[BlackElo "2154"]
[Annotator "TA"]
[PlyCount "121"]
[EventDate "2022.06.13"]
[EventType "tourn"]
[EventCountry "ESP"]
[SourceTitle "playchess.com"]
[Source "ChessBase"]
[SourceQuality "1"]
[TimeControl "5400+30"]

{[%evp 13,121,13,28,0,0,0,10,-5,0,0,8,0,0,0,0,0,0,0,60,62,77,40,71,32,23,8,0,0,0,0,0,0,0,0,0,0,0,0,7,-15,-14,0,0,-5,0,0,4,0,14,0,11,13,39,35,32,40,40,0,7,7,7,0,0,0,0,0,0,0,0,-22,-38,-32,0,-85,-76,-66,-76,-131,-114,-143,-158,-211,-169,-162,0,0,0,0,0,0,179,165,171,148,141,139,251,247,269,267,767,273,316,308,293,285,219,148,2283,1574]} 1. d4 {[%emt 0:00:04]} Nf6 {[%emt 0:00:15]} 2. c4 {[%emt 0:00:10]} e6 {[%emt 0:00:25]} 3. Nf3 {[%emt 0:00:12]} d5 {[%emt 0:00:11]} 4. Nc3 {[%emt 0:01:53]} Bb4 {[%emt 0:00:52]} 5. Qa4+ {[%emt 0:01:51]} Nc6 {[%emt 0:01:02]} 6. Bg5 {[%emt 0:00:27]} h6 {[%emt 0:04:59]} 7. Bxf6 {[%emt 0:01:43]} Qxf6 {[%emt 0:00:26]} 8. a3 {[%emt 0:01:31] D38: Queen's Gambit Declined: Ragozin Defence (4 Nf3 Bb4).} Bxc3+ {[%emt 0:01:30]} 9. bxc3 {[%emt 0:00:09]} Bd7 {[%emt 0:00:52][%cal Oc6d4] aiming for ...Nxd4!} 10. Qc2 {[%emt 0:02:21] The position is equal.} O-O {[%emt 0:02:35]} 11. e3 {[%emt 0:02:14] [#]} Qe7 $146 {[%emt 0:07:26]} ({Predecessor:} 11... Rfe8 12. Be2 dxc4 13. Bxc4 e5 14. O-O e4 15. Nd2 Bf5 16. Rab1 Rab8 17. f3 Qg5 18. fxe4 Qxe3+ {0-1 (71) Gunina,V (2471)-Kosteniuk,A (2516) Warsaw 2021}) 12. Be2 {[%emt 0:06:38]} Na5 {[%emt 0:02:50]} 13. cxd5 {[%emt 0:03:32]} exd5 {[%emt 0:00:16]} 14. Ne5 {[%emt 0:00:25]} c5 {[%emt 0:11:49]} 15. O-O {[%emt 0:01:29]} Nc6 {[%emt 0:01:56]} (15... Rac8 $11) 16. Nxd7 $14 {[%emt 0:04:44]} Qxd7 {[%emt 0:00:06]} 17. Rab1 {[%emt 0:00:06]} b6 {[%emt 0:09:50]} 18. Qa4 {[%emt 0:04:53]} c4 {[%emt 0:06:44]} 19. Bf3 {[%emt 0:02:08]} Rad8 {[%emt 0:45:56][%cal Oc6d4]} 20. Qb5 {[%emt 1:04:00]} f5 {[%emt 0:00:00] Prevents e4.} 21. h3 {[%emt 0:00:00]} Kh8 {[%emt 0:00:00]} 22. a4 {[%emt 0:00:00]} Qe6 {[%emt 0:00:00]} 23. Rfe1 {[%emt 0:00:00]} Rf7 {[%emt 0:00:00]} 24. Qb2 {[%emt 0:00:00]} Na5 {[%emt 0:00:00]} 25. g3 {[%emt 0:00:00]} Re7 {[%emt 0:00:00]} 26. Bg2 {[%emt 0:00:00]} Nb3 {[%emt 0:00:00]} 27. Re2 {[%emt 0:00:00]} Qc6 {[%emt 0:00:00]} 28. Qa3 {[%emt 0:00:00]} Rde8 {[%emt 0:00:00]} 29. Rbe1 {[%emt 0:00:00]} g6 {[%emt 0:00:00]} 30. Qa2 {[%emt 0:00:00]} Qd6 {[%emt 0:00:00]} 31. Qc2 {[%emt 0:00:00]} Qe6 {[%emt 0:00:00]} 32. Qd1 {[%emt 0:00:00]} Na5 {[%emt 0:00:00]} 33. Rb2 {[%emt 0:00:00]} Nb3 {[%emt 0:00:00]} 34. Qf3 {[%emt 0:00:00]} Rd8 {[%emt 0:00:00]} 35. h4 {[%emt 0:00:00]} Kg7 {[%emt 0:00:00]} 36. Bh3 {[%emt 0:00:00]} h5 {[%emt 0:00:00]} 37. Bg2 {[%emt 0:00:00]} Qc6 {[%emt 0:00:00]} 38. Ra2 {[%emt 0:00:00]} Na5 {[%emt 0:00:38]} 39. Qf4 {[%emt 0:00:00]} Nb7 {[%emt 0:02:18]} 40. Qg5 {[%emt 0:00:00]} Rde8 {[%emt 0:02:06]} 41. g4 {[%emt 0:00:00]} hxg4 {[%emt 0:01:20]} 42. h5 {[%emt 0:00:00]} Rd7 {[%emt 0:00:38]} 43. hxg6 {[%emt 0:00:00]} (43. f3 $11 {keeps the balance.}) 43... Qxg6 $17 {[%emt 0:00:17]} 44. Qf4 {[%emt 0:00:00]} Nd8 {[%emt 0:02:13]} 45. Rb2 {[%emt 0:00:00]} ({White should play} 45. a5) 45... Ne6 $1 {[%emt 0:00:21]} 46. Qg3 {[%emt 0:00:00][%cal Oa4a5]} Ng5 {[%emt 0:00:39] Hoping for ...Nf3+.} 47. a5 {[%emt 0:00:00]} (47. Ra1 $17 {keeps fighting.}) 47... bxa5 {[%emt 0:01:30] Threatens to win with ...Nf3+.} 48. Reb1 {[%emt 0:00:00][%cal Be1b1,Bb1b5,Bb5c5][%mdl 32] [#]} Ne4 $2 {[%emt 0:01:06]} (48... Nf3+ $1 $19 49. Bxf3 gxf3) 49. Bxe4 $11 {[%emt 0:00:00]} Rxe4 {[%emt 0:00:26]} 50. Rb7 {[%emt 0:00:00]} Rde7 {[%emt 0:01:14][%cal Of5f4]} 51. R1b5 {[%emt 0:00:00][%csl LRa5,LRd5]} Qc6 $2 {[%emt 0:00:36] [#]} (51... a4 $11 {and Black is okay.}) 52. Rb8 $1 $18 {[%emt 0:00:00] Strongly threatening Qh4.} Re8 {[%emt 0:00:18]} 53. Rc5 {[%emt 0:00:00][%mdl 64] Deflection} Qf6 {[%emt 0:00:46]} 54. Rxa5 {[%emt 0:00:00]} Rxb8 {[%emt 0:00:08]} (54... f4 $16 55. Rxa7+ (55. Qxg4+ Qg6 $14) 55... Kf8 56. Rxe8+ Rxe8 57. Qxg4 fxe3 58. fxe3 Re6) 55. Qxb8 $16 {[%emt 0:00:00][%mdl 4096] Endgame KQR-KQR} g3 {[%emt 0:00:49]} 56. Rxa7+ {[%emt 0:00:00]} Kh6 $2 {[%emt 0:00:15]} (56... Re7 57. Qxg3+ Kf7) 57. f3 $2 {[%emt 0:00:00]} (57. Qc7 {White threatens Qh7+ and mate.} gxf2+ 58. Kf1 (58. Kxf2 Qh4+ 59. Ke2 Rxe3+ 60. Kxe3 Qe1+ 61. Kf3 Qf1+ 62. Kg3 Qd3+ 63. Kh2 Qe2+ 64. Kh1 Qe1+ 65. Kh2 Qe2+ 66. Kg3 Qe3+ 67. Kh4 Qg5+ 68. Kh3 Qg4+ 69. Kh2 Qe2+ $11)) 57... Re7 {[%emt 0:00:50]} 58. Qf4+ {[%emt 0:00:00]} Kg7 {[%emt 0:00:59]} 59. Qxg3+ {[%emt 0:00:00]} Kf7 {[%emt 0:00:00]} 60. Ra8 {[%emt 0:00:00][%csl Ga8][%cal Rg3g8]} Qg6 {[%emt 0:01:03][%mdl 8192] [#] Inhibits Qg8+.} (60... Qg7 $16 61. Qxg7+ Kxg7) 61. Rf8+ $3 {[%emt 0:20:30][%mdl 512] Weighted Error Value: White=0.20 (precise) /Black=0.20 (precise)} 1-0

[Event "Valenciana Championship 2022"]
[Site "Alcossebre"]
[Date "2022.06.13"]
[Round "3.1"]
[White "Jordan Martinez, David"]
[Black "Cruz Lledo, Pablo"]
[Result "1-0"]
[ECO "B13"]
[WhiteElo "2154"]
[BlackElo "2435"]
[Annotator "TA"]
[PlyCount "77"]
[EventDate "2022.06.13"]
[EventType "tourn"]
[EventCountry "ESP"]
[SourceTitle "playchess.com"]
[Source "ChessBase"]
[SourceQuality "1"]
[TimeControl "5400+30"]

{[%evp 11,77,18,15,12,25,20,36,32,36,0,0,-29,36,24,32,0,55,56,55,58,57,50,52,53,56,34,37,38,41,44,50,50,97,93,93,103,299,213,204,165,175,170,230,213,185,162,208,170,159,151,462,463,416,217,208,208,202,0,609,597,548,516,29989,29990,29993,29994,29996,29997]} 1. e4 {[%emt 0:00:02]} c6 {[%emt 0:06:43]} 2. d4 {[%emt 0:00:09]} d5 {[%emt 0:00:05]} 3. exd5 {[%emt 0:00:09]} cxd5 {[%emt 0:00:25]} 4. Bd3 {[%emt 0:00:07]} Nc6 {[%emt 0:01:32]} 5. c3 {[%emt 0:00:08]} Qc7 {[%emt 0:00:13]} 6. Ne2 {[%emt 0:00:15]} Bg4 {[%emt 0:01:36]} 7. O-O {[%emt 0:01:49] B13: Caro-Kann: Exchange Variation and Panov-Botvinnik Attack.} Nf6 {[%emt 0:01:00]} 8. Qe1 $1 {[%emt 0:00:28]} Bxe2 {[%emt 0:00:51]} 9. Qxe2 {[%emt 0:00:23] White is slightly better.} e6 {[%emt 0:00:13]} 10. f4 {[%emt 0:01:53]} Bd6 {[%emt 0:00:53]} 11. Be3 {[%emt 0:06:26]} O-O {[%emt 0:02:58]} (11... h5 $1 $11) 12. Nd2 $14 {[%emt 0:00:50] [#]} g6 $146 {[%emt 0:04:08]} ({Predecessor:} 12... Rfe8 13. g4 a6 14. a4 Rac8 15. b4 Ne7 16. Rac1 Ng6 17. g5 Nd7 18. Qh5 Ndf8 19. Bxg6 Nxg6 {0-1 (44) Diakonova,E (2236)-Nechaeva,M (2409) Sochi 2018}) 13. Rae1 {[%emt 0:12:15]} Nh5 {[%emt 0:00:50]} (13... Ne7 $11) 14. g3 {[%emt 0:02:43][%cal Of4f5]} Ng7 {[%emt 0:01:19] Prevents f5.} 15. Nf3 {[%emt 0:03:53]} f6 {[%emt 0:00:36]} 16. Qg2 {[%emt 0:01:08]} Rab8 {[%emt 0:03:31]} 17. Kh1 {[%emt 0:24:23]} b5 {[%emt 0:08:42]} 18. b4 {[%emt 0:02:20]} Ne7 {[%emt 0:06:33]} 19. Bd2 {[%emt 0:00:43]} Qd7 {[%emt 0:06:35]} 20. Qe2 {[%emt 0:01:02]} Bc7 {[%emt 0:02:15]} 21. g4 {[%emt 0:07:00][%cal Of4f5]} Nc8 {[%emt 0:02:05]} (21... Bd6 $14) 22. f5 $1 $16 {[%emt 0:06:39]} exf5 {[%emt 0:00:13]} 23. gxf5 {[%emt 0:00:10]} gxf5 {[%emt 0:04:03]} (23... Nxf5 $16 24. Bxf5 Qxf5) 24. Nh4 {[%emt 0:03:33]} Nd6 {[%emt 0:00:34]} 25. Nxf5 {[%emt 0:04:22]} Ndxf5 {[%emt 0:13:53]} 26. Bxf5 {[%emt 0:00:11]} Qf7 {[%emt 0:02:30]} (26... Nxf5 {keeps fighting.} 27. Qg4+ Kh8 28. Qxf5 Qxf5 29. Rxf5 Rbe8 30. Rxd5 a6) 27. Bh6 $18 {[%emt 0:03:49]} Kh8 {[%emt 0:04:48]} 28. Bd3 {[%emt 0:12:07] This bishop pair is nice.} Rg8 {[%emt 0:04:49]} (28... Rfe8 {was necessary.} 29. Qf3 (29. Bxg7+ Kxg7 30. Qg4+ Kh8 $18) 29... Rxe1 30. Rxe1 a6) 29. Qf3 {[%emt 0:01:25]} (29. Bxb5 $6 Bxh2 30. Bxg7+ (30. Kxh2 Nh5 $14) (30. Qxh2 Rxb5 31. Rg1 Nf5 $11) 30... Qxg7 31. Qxh2 Rxb5 $16) 29... Rb6 {[%emt 0:01:31]} 30. Rg1 {[%emt 0:02:17]} Rbb8 $2 {[%emt 0:03:55]} (30... f5 $16 {is tougher.} 31. Qh3 (31. Bxg7+ Rxg7 32. Rxg7 Kxg7 $16) 31... Rf6) 31. Rg2 {[%emt 0:00:07] Threatens to win with Reg1.} Nh5 {[%emt 0:03:01]} 32. Rge2 {[%emt 0:01:20]} (32. Reg1 $142) 32... Bd6 {[%emt 0:05:52]} 33. Re6 {[%emt 0:00:11]} Rbd8 {[%emt 0:01:32]} 34. R6e2 $2 {[%emt 0:01:44] Active counter play!} (34. Bxb5 $6 Bxh2 35. Re7 (35. Kxh2 Qc7+ 36. Kh1 Ng3+ 37. Kg2 Nf5+ 38. Kh1 Ng3+ 39. Kg2 Nf5+ 40. Kh1 Ng3+ $11) 35... Qg6 $16) (34. Qxd5 $2 Be5 $1 35. Qf3 (35. Qe4 $2 Ng3+ 36. hxg3 Qh5+ 37. Kg2 Rxg3+ 38. Kf1 Rf3+ 39. Ke2 Rf4+ 40. Kd2 Rxe4 $19) 35... Qxe6 $19) ({White should try} 34. Bc1 $18) 34... Ng3+ $2 {[%emt 0:03:25][%mdl 8192]} 35. hxg3 {[%emt 0:01:13]} Rxg3 {[%emt 0:00:02]} 36. Qf5 {[%emt 0:00:26][%cal Oe2e8] Re8+! is the strong threat.} Rxd3 {[%emt 0:00:14] [#]} (36... Rg6 $18 37. Bf4 Bxf4) 37. Re8+ $1 {[%emt 0:00:37] White mates.} ({Not} 37. Bg7+ Kxg7 38. Qxd3 Qh5+ 39. Kg1 Rg8 40. Rg2+ Kf7 41. Rxg8 (41. Ree2 $2 Qh2+ 42. Kf2 Rxg2+ $19) 41... Kxg8 $16) 37... Bf8 {[%emt 0:02:54]} 38. Rxd8 {[%emt 0:00:24]} Rh3+ {[%emt 0:00:09]} 39. Qxh3 {[%emt 0:00:11] Weighted Error Value: White=0.23 (precise) /Black=0.67} 1-0

[Event "Valenciana Championship 2022"]
[Site "Alcossebre"]
[Date "2022.06.13"]
[Round "3.2"]
[White "Valmana Canto, Jaime"]
[Black "Granero Roca, Antonio"]
[Result "1-0"]
[ECO "C68"]
[WhiteElo "2392"]
[BlackElo "2340"]
[Annotator "TA"]
[PlyCount "63"]
[EventDate "2022.06.13"]
[EventType "tourn"]
[EventCountry "ESP"]
[SourceTitle "playchess.com"]
[Source "ChessBase"]
[SourceQuality "1"]
[TimeControl "5400+30"]

{[%evp 14,63,127,127,239,233,231,237,273,273,272,272,285,285,272,278,283,283,355,225,228,239,221,215,207,209,212,196,302,311,284,213,214,205,221,214,218,224,209,206,213,205,229,212,379,392,392,386,424,404,405,410]} 1. e4 {[%emt 0:06:03]} e5 {[%emt 0:00:11]} 2. Nf3 {[%emt 0:00:14]} Nc6 {[%emt 0:00:15]} 3. Bb5 {[%emt 0:00:34]} a6 {[%emt 0:00:46]} 4. Bxc6 {[%emt 0:00:10]} dxc6 {[%emt 0:00:06]} 5. O-O {[%emt 0:00:05]} Bd6 {[%emt 0:01:16]} 6. d4 {[%emt 0:01:48]} f6 {[%emt 0:02:28]} 7. dxe5 {[%emt 0:07:51]} fxe5 {[%emt 0:00:59] [#]} 8. Nxe5 $1 {[%emt 0:00:08][%mdl 512]} Ne7 {[%emt 0:02:43] C68: Ruy Lopez: Exchange Variation, sidelines.} (8... Qh4 $16) (8... Be6 9. Nd3) 9. Qh5+ $18 {[%emt 0:12:10]} g6 {[%emt 0:00:45]} 10. Qg5 {[%emt 0:00:05]} O-O {[%emt 0:02:39] White is clearly better.} 11. Nd3 {[%emt 0:00:27] Pair of Knights!} b6 {[%emt 0:04:54] [#]} 12. Nc3 $146 {[%emt 0:08:46]} ({Predecessor:} 12. f4 Be6 13. f5 Bc4 14. f6 Nc8 15. e5 Bc5+ 16. Nxc5 bxc5 17. Re1 Qd4+ 18. Be3 Qxb2 {1-0 (33) Kononenko,A (2324)-Scheblykin,S (2348) Anapa 2008}) 12... a5 {[%emt 0:04:00]} 13. Rd1 {[%emt 0:01:04]} Qe8 {[%emt 0:01:56]} 14. a3 {[%emt 0:00:17]} Ba6 {[%emt 0:02:59]} 15. e5 {[%emt 0:02:02]} Rf5 {[%emt 0:00:21]} 16. Qe3 {[%emt 0:02:35]} Rxe5 {[%emt 0:15:01]} 17. Nxe5 {[%emt 0:00:07]} Nf5 {[%emt 0:00:06] [#]} 18. Qe4 {[%emt 0:01:39]} Qxe5 {[%emt 0:00:21]} 19. Qxe5 {[%emt 0:01:44]} Bxe5 {[%emt 0:00:06]} 20. Re1 {[%emt 0:06:41]} Bg7 {[%emt 0:03:01]} (20... Bd6 {was worth a try.} 21. Bg5 Nd4) 21. Bf4 {[%emt 0:00:30]} Nd4 {[%emt 0:02:40]} 22. Rac1 {[%emt 0:00:03]} (22. Bxc7 Nxc2 23. Rad1 (23. Bxb6 Nxa1 24. Rxa1 Rb8 $11) 23... Nxe1 24. Rxe1 Bc4 $11) 22... b5 {[%emt 0:00:26]} 23. Be3 {[%emt 0:30:15]} ({Less strong is} 23. Bxc7 b4 24. axb4 (24. Bxa5 bxc3 25. Bxc3 Ne2+ 26. Rxe2 Bxe2 $17) 24... axb4 $11) 23... b4 {[%emt 0:02:12]} 24. axb4 {[%emt 0:00:03]} axb4 {[%emt 0:00:12]} 25. Bxd4 {[%emt 0:00:05]} Bxd4 {[%emt 0:00:09]} 26. Nd1 {[%emt 0:00:02]} Rd8 {[%emt 0:04:52]} 27. c3 {[%emt 0:00:25][%cal Bc2c3,Bc3b4][%mdl 32]} Bc5 {[%emt 0:01:39]} 28. Ne3 {[%emt 0:06:23]} Rd2 $2 {[%emt 0:02:10]} (28... bxc3 29. bxc3 (29. Rxc3 Bb4 $11) 29... h5) 29. cxb4 {[%emt 0:00:10]} Bb6 {[%emt 0:00:53]} 30. b3 {[%emt 0:04:01]} Bb5 {[%emt 0:02:03]} 31. Red1 {[%emt 0:01:39]} Re2 {[%emt 0:00:58]} 32. Rc2 {[%emt 0:00:43] Weighted Error Value: White=0.11 (very precise) /Black=0.24 (precise)} ({Not} 32. Rd8+ Kf7 $18) 1-0

[Event "Valenciana Championship 2022"]
[Site "Alcossebre"]
[Date "2022.06.13"]
[Round "3.3"]
[White "Carbonell Sancho, Marc"]
[Black "Macias Pino, Diego"]
[Result "1/2-1/2"]
[ECO "C54"]
[WhiteElo "2269"]
[BlackElo "2365"]
[Annotator "TA"]
[PlyCount "37"]
[EventDate "2022.06.13"]
[EventType "tourn"]
[EventCountry "ESP"]
[SourceTitle "playchess.com"]
[Source "ChessBase"]
[SourceQuality "1"]
[TimeControl "5400+30"]

{[%evp 13,37,28,56,19,49,26,26,23,72,44,52,43,74,58,65,37,40,20,29,16,46,0,25,0,50,0]} 1. e4 {[%emt 0:09:36] Ramirez Alvarez,A} e5 {[%emt 0:00:04]} 2. Nf3 {[%emt 0:00:04]} Nc6 {[%emt 0:00:03]} 3. Bc4 {[%emt 0:00:05]} Bc5 {[%emt 0:00:03]} 4. c3 {[%emt 0:00:04]} Nf6 {[%emt 0:00:03]} 5. d3 {[%emt 0:00:04]} O-O {[%emt 0:00:13]} 6. O-O {[%emt 0:00:04]} d5 {[%emt 0:00:04]} 7. exd5 {[%emt 0:00:04]} Nxd5 {[%emt 0:00:04]} 8. a4 {[%emt 0:00:05] C54: Giuoco Piano: 4 c3 Nf6, main lines with 5 d4 and 5 d3.} (8. Re1 $5 {[%cal Rb2b4]}) 8... a6 {[%emt 0:00:03]} 9. Nbd2 {[%emt 0:00:04]} Kh8 {[%emt 0:04:59]} 10. Re1 {[%emt 0:01:39] [#] White has an edge.} Nb6 $146 {[%emt 0:05:05]} (10... f6 $11 {feels stronger.}) ({Predecessor:} 10... f6 11. d4 Ba7 12. dxe5 Nxe5 13. Nxe5 fxe5 14. Nf3 c6 15. Bg5 Qb6 16. Bxd5 cxd5 {½-½ (44) Kramnik,V (2808)-Karjakin,S (2781) Stavanger 2017 CBM 179 [Ramirez Alvarez,A]}) 11. Ne4 {[%emt 0:04:14]} Be7 {[%emt 0:02:14]} 12. Bb3 {[%emt 0:00:12] [#] Strongly threatening Nfg5.} f6 {[%emt 0:02:02] Prevents Nfg5.} 13. Ng3 {[%emt 0:10:05] White is more active.} a5 {[%emt 0:07:06]} 14. Qe2 {[%emt 0:04:54]} Bd7 {[%emt 0:03:31]} 15. Bd2 {[%emt 0:02:25]} Bd6 {[%emt 0:05:11]} 16. Ne4 {[%emt 0:05:20]} Be7 {[%emt 0:04:27]} 17. Ng3 {[%emt 0:10:10]} Bd6 {[%emt 0:03:28]} 18. Ne4 {[%emt 0:13:03]} Be7 {[%emt 0:00:27]} 19. Ng3 {[%emt 0:37:48] Weighted Error Value: White=0.21 (precise) /Black=0.09 (flawless)} (19. h3 $14) 1/2-1/2